[Event "17th Asian Continental-ch Women 2018"]
[Site "Makati City"]
[Date "2018.12.15"]
[Round "6.15"]
[White "Karenza, Dita"]
[Black "San Diego, Marie Antoinette"]
[Result "1-0"]
[ECO "A00"]
[WhiteElo "1944"]
[BlackElo "2111"]
[PlyCount "135"]
[EventDate "2018.12.07"]
[EventType "swiss"]
[EventCountry "PHI"]
[TimeControl "40/5400+30:1800+30"]

1. e4 c5 2. c3 d5 3. exd5 Qxd5 4. Na3 Nf6 5. Nf3 Bg4 6. Be2 Nc6 7. O-O e6 8. h3 Bh5 9. d4 cxd4 10. Nb5 Rc8 11. Nbxd4 Nxd4 12. Nxd4 Bxe2 13. Qxe2 Bc5 14. Rd1 O-O 15. Nb3 Qf5 16. Nxc5 Rxc5 17. Be3 Ra5 18. c4 b6 19. Bd4 Rc8 20. b3 e5 21. Be3 h6 22. a4 e4 23. c5 Rcxc5 24. Bxc5 Rxc5 25. Rac1 Re5 26. g4 Qe6 27. Qc4 Nd5 28. Qc8+ Kh7 29. Qxe6 fxe6 30. Re1 Nf4 31. Rc4 Nxh3+ 32. Kh2 Ng5 33. Kg3 Rd5 34. Rc7 e5 35. Rxa7 Rd3+ 36. Re3 Rd1 37. Kg2 Rc1 38. Ra6 Nf3 39. Rxe4 Nh4+ 40. Kh2 Rf1 41. Rxe5 Rxf2+ 42. Kg3 Rf3+ 43. Kxh4 g5+ 44. Rxg5 hxg5+ 45. Kxg5 Rxb3 46. Ra7+ Kg8 47. Kg6 Kf8 48. g5 Rg3 49. Rb7 Rg4 50. Rxb6 Rxa4 51. Rb8+ Ke7 52. Kg7 Rg4 53. g6 Rg1 54. Rb3 Re1 55. Rf3 Re2 56. Rf7+ Ke8 57. Kg8 Rg2 58. g7 Rg1 59. Rf2 Rh1 60. Re2+ Kd7 61. Re5 Kd6 62. Re4 Kd7 63. Kf7 Rf1+ 64. Kg6 Rg1+ 65. Kf6 Rg2 66. Re5 Kd6 67. Rg5 Rf2+ 68. Kg6 1-0

[Event "17th Asian Continental-ch Women 2018"]
[Site "Makati City"]
[Date "2018.12.15"]
[Round "6.16"]
[White "Galas, Bernadette"]
[Black "San Diego, Jerlyn Mae"]
[Result "0-1"]
[ECO "A00"]
[WhiteElo "2100"]
[BlackElo "1932"]
[PlyCount "138"]
[EventDate "2018.12.07"]
[EventType "swiss"]
[EventCountry "PHI"]
[TimeControl "40/5400+30:1800+30"]

1. e4 c5 2. b3 g6 3. Bb2 Nf6 4. e5 Nd5 5. g3 Bg7 6. Bg2 Nb4 7. Bc3 N4c6 8. Nf3 O-O 9. O-O d6 10. exd6 e5 11. Re1 Qxd6 12. Na3 Bg4 13. h3 Bxf3 14. Qxf3 a6 15. Nc4 Qc7 16. Qd5 Nd7 17. Qd6 Qxd6 18. Nxd6 Nd4 19. Rac1 Rab8 20. Nxb7 f5 21. Bxd4 cxd4 22. Bd5+ Kh8 23. Nd6 h6 24. d3 Nb6 25. Bf3 Rf6 26. Nc4 Nxc4 27. bxc4 Rfb6 28. Bd5 h5 29. Kg2 Rb2 30. f4 exf4 31. gxf4 Rxa2 32. Re6 Kh7 33. Kf3 Rbb2 34. c5 Ra5 35. Bc4 Rxc5 36. Rxa6 Rc7 37. h4 Re7 38. Re6 Rxe6 39. Bxe6 Rb7 40. Re1 Bf6 41. Rh1 Re7 42. Bb3 Re3+ 43. Kf2 Be7 44. Bc4 Bc5 45. Bb5 Re7 46. Rg1 Bd6 47. Re1 Rxe1 48. Kxe1 Be7 49. Ke2 Bxh4 50. Kf3 Be1 51. Ke2 Bc3 52. Bc6 h4 53. Bd5 Bb4 54. Bc6 Bd6 55. Kf3 Kh6 56. Bd5 h3 57. Kg3 g5 58. Kxh3 Bxf4 59. Kg2 g4 60. Kf1 Kg5 61. Ke2 Be5 62. Bc6 f4 63. Kf2 f3 64. Bd5 Kf4 65. Be6 Bf6 66. Bd5 g3+ 67. Kg1 g2 68. Kh2 Ke3 69. Kg1 Ke2 0-1

[Event "17th Asian Continental-ch Women 2018"]
[Site "Makati City"]
[Date "2018.12.15"]
[Round "6.17"]
[White "Zhang, Xiao"]
[Black "Mejia, Cherry Ann"]
[Result "1-0"]
[ECO "A00"]
[WhiteElo "2017"]
[BlackElo "1980"]
[PlyCount "65"]
[EventDate "2018.12.07"]
[EventType "swiss"]
[EventCountry "PHI"]
[TimeControl "40/5400+30:1800+30"]

1. d4 Nf6 2. c4 e6 3. Nf3 d5 4. e3 Bb4+ 5. Nbd2 O-O 6. b3 a6 7. Bd3 dxc4 8. bxc4 c5 9. Bb2 Nc6 10. O-O cxd4 11. exd4 b6 12. Rc1 Bb7 13. Bb1 Rc8 14. Qc2 Bxd2 15. d5 Nb4 16. Qxd2 a5 17. a3 Na6 18. Qd3 Nc5 19. Qc2 Nce4 20. Nd2 exd5 21. f3 Re8 22. fxe4 dxe4 23. Rce1 Ng4 24. h3 Ne5 25. Nxe4 f5 26. Rxf5 Nxc4 27. Ba2 Bd5 28. Nf6+ gxf6 29. Rxe8+ Qxe8 30. Rxd5 Ne3 31. Rd8+ Kg7 32. Qxc8 Qe4 33. Rg8+ 1-0

[Event "17th Asian Continental-ch Women 2018"]
[Site "Makati City"]
[Date "2018.12.15"]
[Round "6.18"]
[White "Bernales, Christy Lamiel"]
[Black "Mordido, Kylen Joy"]
[Result "1-0"]
[ECO "A00"]
[WhiteElo "1996"]
[BlackElo "2045"]
[PlyCount "75"]
[EventDate "2018.12.07"]
[EventType "swiss"]
[EventCountry "PHI"]
[TimeControl "40/5400+30:1800+30"]

1. e4 c5 2. Nc3 Nc6 3. Bb5 Nd4 4. f4 g6 5. Nf3 Bg7 6. O-O a6 7. Bd3 e6 8. Nxd4 cxd4 9. Ne2 d5 10. e5 f6 11. exf6 Qxf6 12. c3 dxc3 13. bxc3 Ne7 14. Ba3 O-O 15. Rb1 b5 16. Bd6 Bd7 17. a4 bxa4 18. Rb7 Rfd8 19. Nd4 Nc8 20. Be5 Qe7 21. Qe2 Bf8 22. Qg4 Qe8 23. Qh4 Be7 24. Qh6 Bf8 25. Qh4 Be7 26. Qh3 Nd6 27. Rxd7 Qxd7 28. Bxg6 hxg6 29. Qh8+ Kf7 30. Qg7+ Ke8 31. Qxg6+ Nf7 32. Nxe6 Qa7+ 33. Bd4 Qb7 34. Qg8+ Kd7 35. Qxf7 Kc8 36. Nxd8 Bxd8 37. Qxb7+ Kxb7 38. Ra1 1-0

[Event "17th Asian Continental-ch Women 2018"]
[Site "Makati City"]
[Date "2018.12.15"]
[Round "6.19"]
[White "Doan, Thi Van Anh"]
[Black "Wang, Ying"]
[Result "1-0"]
[ECO "A00"]
[WhiteElo "1950"]
[BlackElo "1324"]
[PlyCount "77"]
[EventDate "2018.12.07"]
[EventType "swiss"]
[EventCountry "PHI"]
[TimeControl "40/5400+30:1800+30"]

1. d4 d5 2. c4 e6 3. Nc3 c6 4. Nf3 Nf6 5. Bg5 h6 6. Bh4 dxc4 7. e4 Be7 8. a4 Qa5 9. Bxf6 Bxf6 10. Bxc4 O-O 11. O-O Qc7 12. e5 Be7 13. Qe2 Na6 14. Rac1 Nb4 15. Ne4 a6 16. h3 Qd8 17. Rfd1 Bd7 18. Nh2 Nd5 19. Ba2 f5 20. exf6 Bxf6 21. Ng4 Bg5 22. Ra1 Nf4 23. Qc2 Kh8 24. Bb1 Be8 25. Ne5 Bg6 26. Nxg6+ Nxg6 27. Nxg5 Qxg5 28. Qxg6 Qxg6 29. Bxg6 Rf6 30. Be4 Rd8 31. b4 Rd6 32. Rab1 b6 33. Rbc1 e5 34. dxe5 Rxd1+ 35. Rxd1 Rf8 36. e6 g5 37. e7 Rg8 38. Rd8 Kg7 39. Rxg8+ 1-0

[Event "17th Asian Continental-ch Women 2018"]
[Site "Makati City"]
[Date "2018.12.16"]
[Round "7"]
[White "Pham, Le Thao Nguyen"]
[Black "Zhu, Jiner"]
[Result "1-0"]
[ECO "E69"]
[WhiteElo "2363"]
[BlackElo "2409"]
[Annotator "NA"]
[PlyCount "81"]
[EventDate "2018.12.07"]
[EventType "swiss"]
[EventCountry "PHI"]
[SourceTitle "playchess.com"]
[Source "ChessBase"]
[SourceQuality "1"]
[TimeControl "40/5400+30:1800+30"]

1. d4 {[%emt 0:08:31]} Nf6 {[%emt 0:00:00]} 2. Nf3 {[%emt 0:00:21]} g6 {[%emt 0:00:00]} 3. g3 {[%emt 0:00:30]} Bg7 {[%emt 0:00:00]} 4. Bg2 {[%emt 0:00:11]} O-O {[%emt 0:00:01]} 5. O-O {[%emt 0:00:10]} d6 {[%emt 0:00:06]} 6. c4 {[%emt 0:00:28]} c6 {[%emt 0:00:07]} 7. Nc3 {[%emt 0:00:24]} Qa5 {[%emt 0:00:07]} 8. e4 {[%emt 0:00:28]} e5 {[%emt 0:00:07]} 9. h3 {[%emt 0:00:38]} Nbd7 {[%emt 0:00:06]} 10. Be3 {[%emt 0:01:14]} exd4 {[%emt 0:00:07]} 11. Nxd4 {[%emt 0:01:02]} Nb6 {[%emt 0:00:06]} 12. Nb3 {[%emt 0:15:00] E69: King's Indian: Fianchetto: 6...Nbd7 7 0-0 e5 8 e4 c6 9 h3} Qa6 {[%emt 0:00:07]} 13. c5 {[%emt 0:05:20]} Nc4 {[%emt 0:00:08]} 14. Bd4 {[%emt 0:05:53]} Nxb2 {[%emt 0:02:31]} (14... dxc5 15. Nxc5 Qa5 16. Qe2 Nb6 17. a3 Nbd7 18. b4 Qc7 19. Rfd1 Re8 {1-0 (51) Cheparinov,I (2710)-Mchedlishvili,M (2603) Riadh 2017}) 15. Qc2 {[%emt 0:01:07]} Nc4 {[%emt 0:00:11]} 16. cxd6 {[%emt 0:00:29]} Nd7 {[%emt 0:14:13]} 17. Rfd1 $146 {[%emt 0:04:50]} ({Predecessor:} 17. Bxg7 Kxg7 18. Rad1 f6 19. Rfe1 Qa3 {1-0 (28) David,V (2399)-Valles,M (2142) Saint Affrique 2009}) 17... b5 {[%emt 0:10:07]} 18. a4 {[%emt 0:07:36]} b4 {[%emt 0:12:23]} 19. Bxg7 {[%emt 0:02:10]} Kxg7 {[%emt 0:00:04]} 20. Na2 {[%emt 0:00:46]} Nce5 {[%emt 0:19:26]} 21. Nxb4 {[%emt 0:03:13]} Qb6 {[%emt 0:00:06]} 22. Nd3 {[%emt 0:01:05]} Ba6 $18 {[%emt 0:01:16]} (22... Nxd3 23. Rxd3 Rb8 24. Qc3+ Kg8) 23. Nxe5 {[%emt 0:03:14]} Nxe5 {[%emt 0:00:05]} 24. Nc5 {[%emt 0:01:38]} Bc4 {[%emt 0:01:22]} 25. Nd7 {[%emt 0:01:42]} Nxd7 {[%emt 0:00:15]} 26. Qxc4 {[%emt 0:00:09]} Rab8 {[%emt 0:01:49]} 27. Rac1 {[%emt 0:03:10]} c5 {[%emt 0:01:43]} 28. h4 {[%emt 0:03:00]} Qb2 {[%emt 0:05:11]} 29. Bh3 {[%emt 0:11:04]} Rb4 {[%emt 0:02:05]} 30. Qc3+ {[%emt 0:01:07]} Qxc3 {[%emt 0:00:14]} 31. Rxc3 {[%emt 0:00:04]} Rd8 {[%emt 0:00:25]} 32. Bxd7 {[%emt 0:02:43]} Rxd7 {[%emt 0:00:06]} 33. e5 {[%emt 0:00:09]} Rxa4 {[%emt 0:01:28]} 34. Rxc5 {[%emt 0:00:05]} Re4 {[%emt 0:00:08]} 35. Rdc1 {[%emt 0:02:51]} Rb7 {[%emt 0:02:08]} 36. R1c4 {[%emt 0:02:11]} Re1+ {[%emt 0:01:29]} 37. Kg2 {[%emt 0:00:06]} h6 {[%emt 0:01:42]} 38. Rc7 {[%emt 0:01:01]} Rb8 {[%emt 0:00:37]} 39. Re7 {[%emt 0:01:44]} Rf8 {[%emt 0:00:55]} 40. Rcc7 {[%emt 0:00:00]} a5 {[%emt 0:00:00]} 41. e6 {[%emt 0:01:13]} 1-0

[Event "17th Asian Continental-ch Women 2018"]
[Site "Makati City"]
[Date "2018.12.16"]
[Round "7"]
[White "Gu, Tianlu"]
[Black "Wang, Jue"]
[Result "0-1"]
[ECO "C88"]
[WhiteElo "2231"]
[BlackElo "2367"]
[Annotator "NA"]
[PlyCount "96"]
[EventDate "2018.12.07"]
[EventType "swiss"]
[EventCountry "PHI"]
[SourceTitle "playchess.com"]
[Source "ChessBase"]
[SourceQuality "1"]
[TimeControl "40/5400+30:1800+30"]

1. e4 {[%emt 0:00:00]} e5 {[%emt 0:01:43]} 2. Nf3 {[%emt 0:00:00]} Nc6 {[%emt 0:00:08]} 3. Bb5 {[%emt 0:00:20]} a6 {[%emt 0:00:09]} 4. Ba4 {[%emt 0:00:06]} Nf6 {[%emt 0:00:05]} 5. O-O {[%emt 0:00:11]} Be7 {[%emt 0:00:07]} 6. Re1 {[%emt 0:00:21]} b5 {[%emt 0:00:06]} 7. Bb3 {[%emt 0:00:18]} O-O {[%emt 0:00:06]} 8. a4 {[%emt 0:00:34]} b4 {[%emt 0:04:54]} 9. d4 {[%emt 0:03:45]} d6 {[%emt 0:00:08]} 10. dxe5 {[%emt 0:01:32]} Nxe5 {[%emt 0:00:05]} 11. Nxe5 {[%emt 0:03:09] C88: Closed Ruy Lopez: Anti-Marshall Systems} (11. Nbd2 Nfd7 12. Nd4 Bb7 13. f4 Ng6 14. N2f3 Bf6 15. Bd5 Bxd5 16. exd5 Ne7 17. a5 Qc8 18. Nc6 Re8 19. Nxb4 {1-0 (28) Wei,Y (2729)-So,W (2780) chess.com INT 2018}) 11... dxe5 {[%emt 0:00:06]} 12. Qxd8 {[%emt 0:05:13]} Rxd8 {[%emt 0:00:05]} 13. f3 {[%emt 0:03:56]} Bc5+ {[%emt 0:12:39]} 14. Kh1 $146 {[%emt 0:02:59]} ({Predecessor:} 14. Kf1 a5 15. Bc4 h6 16. Nd2 Ne8 17. Nb3 Bb6 18. Be3 Nd6 {½-½ (37) Vasiukov,E (2499)-Tseshkovsky,V (2520) Dresden 2007}) 14... a5 {[%emt 0:14:40]} 15. Bc4 {[%emt 0:09:52]} Ba6 {[%emt 0:14:44]} 16. Bxa6 {[%emt 0:08:22]} Rxa6 {[%emt 0:03:26]} 17. Nd2 {[%emt 0:00:22]} Rc6 {[%emt 0:03:00]} 18. c3 {[%emt 0:07:48]} bxc3 {[%emt 0:04:49]} 19. bxc3 {[%emt 0:00:05]} Bb6 $17 {[%emt 0:02:02]} 20. Nb1 {[%emt 0:12:45]} Rd3 {[%emt 0:07:42]} 21. Na3 {[%emt 0:06:07]} Nd7 {[%emt 0:03:46]} 22. Bb2 {[%emt 0:02:10]} f6 {[%emt 0:05:57]} 23. h3 {[%emt 0:07:54]} Kf7 {[%emt 0:02:39]} 24. Nb5 {[%emt 0:03:36]} Rc4 {[%emt 0:05:56]} 25. Red1 {[%emt 0:09:42]} Rxd1+ {[%emt 0:02:21]} 26. Rxd1 {[%emt 0:00:03]} Ke8 {[%emt 0:00:56]} 27. Ba3 {[%emt 0:03:14]} Rxa4 {[%emt 0:00:21]} 28. h4 {[%emt 0:01:06]} Kd8 {[%emt 0:04:34]} 29. Bf8 {[%emt 0:03:31]} g6 {[%emt 0:00:17]} 30. g4 {[%emt 0:02:04]} Rc4 {[%emt 0:03:58]} 31. Rd3 {[%emt 0:01:12]} Bc5 {[%emt 0:02:08]} 32. Na3 {[%emt 0:02:08]} Bxa3 {[%emt 0:00:08]} 33. Bxa3 {[%emt 0:00:04]} Ra4 {[%emt 0:00:25]} 34. Bc5 {[%emt 0:00:31]} Ke8 {[%emt 0:01:47]} 35. Be3 {[%emt 0:00:13]} Rc4 {[%emt 0:00:50]} 36. Rd5 {[%emt 0:01:34]} a4 {[%emt 0:00:17]} 37. Ra5 {[%emt 0:00:38]} Rxc3 {[%emt 0:00:44]} 38. Bd2 {[%emt 0:00:04]} Rxf3 {[%emt 0:00:38]} 39. Ra8+ {[%emt 0:00:40]} Ke7 {[%emt 0:00:20]} 40. Kg2 {[%emt 0:00:00]} Rd3 {[%emt 0:00:00]} 41. Bc1 {[%emt 0:01:17]} Rc3 {[%emt 0:03:10]} 42. Bh6 {[%emt 0:00:51]} a3 {[%emt 0:02:18]} 43. g5 {[%emt 0:00:48]} fxg5 {[%emt 0:02:00]} 44. Bxg5+ {[%emt 0:00:10]} Kd6 {[%emt 0:00:43]} 45. Ra6+ {[%emt 0:00:19]} c6 {[%emt 0:00:24]} 46. Ra7 {[%emt 0:01:05]} Rc2+ {[%emt 0:04:15]} 47. Kf3 {[%emt 0:00:28]} a2 {[%emt 0:00:02]} 48. Ke3 {[%emt 0:00:33]} Rh2 {[%emt 0:02:43]} 0-1

[Event "17th Asian Continental-ch Women 2018"]
[Site "Makati City"]
[Date "2018.12.16"]
[Round "7.4"]
[White "Munkhzul, Turmunkh"]
[Black "Vo, Thi Kim Phung"]
[Result "1/2-1/2"]
[ECO "A00"]
[WhiteElo "2255"]
[BlackElo "2352"]
[PlyCount "117"]
[EventDate "2018.12.07"]
[EventType "swiss"]
[EventCountry "PHI"]
[TimeControl "40/5400+30:1800+30"]

1. e4 e6 2. d4 d5 3. Nd2 c5 4. exd5 exd5 5. Ngf3 Nf6 6. Bb5+ Bd7 7. Bxd7+ Nbxd7 8. O-O Be7 9. dxc5 Nxc5 10. Nb3 Nce4 11. Nfd4 O-O 12. Nf5 Re8 13. Nxe7+ Qxe7 14. f3 Nd6 15. Bg5 Nc4 16. Qd4 Qe5 17. Qxe5 Rxe5 18. Bf4 Re7 19. Bc1 Rae8 20. Nd4 Ne5 21. Bg5 Nc6 22. Rad1 Nxd4 23. Rxd4 Re2 24. Bxf6 gxf6 25. Rc1 Rc8 26. Rxd5 Rcxc2 27. Rxc2 Rxc2 28. Rb5 b6 29. h4 Kg7 30. Kh2 Rf2 31. Kg3 Rc2 32. Kh3 Rf2 33. a4 h6 34. b4 Ra2 35. a5 bxa5 36. bxa5 a6 37. Rc5 Ra3 38. Kg3 Kg6 39. h5+ Kg7 40. Kf4 Ra2 41. g4 Ra4+ 42. Ke3 Kf8 43. Rf5 Ke7 44. Kd3 Ke6 45. Ke3 Rc4 46. Kd3 Ra4 47. Rc5 Kd6 48. Rc8 Rxa5 49. Rh8 Ke5 50. Rxh6 Ra3+ 51. Ke2 f5 52. Rh8 Kf4 53. gxf5 Re3+ 54. Kd2 Rxf3 55. Rf8 Kg5 56. Rxf7 Rxf5 57. Rxf5+ Kxf5 58. Kc3 Kg5 59. Kb4 1/2-1/2

[Event "17th Asian Continental-ch Women 2018"]
[Site "Makati City"]
[Date "2018.12.16"]
[Round "7.5"]
[White "Li, Xueyi"]
[Black "Gong, Qianyun"]
[Result "0-1"]
[ECO "A00"]
[WhiteElo "2187"]
[BlackElo "2312"]
[PlyCount "62"]
[EventDate "2018.12.07"]
[EventType "swiss"]
[EventCountry "PHI"]
[TimeControl "40/5400+30:1800+30"]

1. d4 Nf6 2. c4 e6 3. g3 d5 4. Bg2 dxc4 5. Nf3 Bd7 6. O-O Bc6 7. Qc2 b5 8. Bg5 Be7 9. Nbd2 O-O 10. e4 Bb7 11. Bxf6 Bxf6 12. e5 Be7 13. Ng5 Bxg5 14. Bxb7 Nd7 15. Bxa8 Qxa8 16. Ne4 Be7 17. b3 Nb6 18. bxc4 bxc4 19. h4 h6 20. a4 a5 21. Nd2 Rd8 22. Nxc4 Rxd4 23. Nxb6 cxb6 24. Rfd1 Rg4 25. Rac1 Bc5 26. Kh2 g5 27. Kh3 Qf3 28. Kh2 Bxf2 29. Qg6+ fxg6 30. Rd8+ Kg7 31. Rc7+ Qf7 0-1

[Event "17th Asian Continental-ch Women 2018"]
[Site "Makati City"]
[Date "2018.12.16"]
[Round "7.6"]
[White "Nakhbayeva, Guliskhan"]
[Black "Aulia, Medina Warda"]
[Result "0-1"]
[ECO "A00"]
[WhiteElo "2371"]
[BlackElo "2366"]
[PlyCount "120"]
[EventDate "2018.12.07"]
[EventType "swiss"]
[EventCountry "PHI"]
[TimeControl "40/5400+30:1800+30"]

1. d4 e6 2. c4 Bb4+ 3. Nc3 c5 4. e3 cxd4 5. exd4 d5 6. Nf3 Ne7 7. c5 Nbc6 8. Bb5 O-O 9. Bd2 e5 10. a3 Bxc3 11. bxc3 exd4 12. Nxd4 Ne5 13. O-O Qc7 14. Bf4 N7g6 15. Bg3 Qxc5 16. f4 Ng4 17. f5 Ne3 18. Qd3 Nxf1 19. Rxf1 Ne7 20. f6 gxf6 21. Rxf6 Be6 22. h4 Rac8 23. Kh2 Qxc3 24. Qd1 a6 25. Rxe6 fxe6 26. Qg4+ Ng6 27. Bd7 Rcd8 28. Qxe6+ Rf7 29. Be8 Rxe8 30. Qxe8+ Nf8 31. Qe5 Qd3 32. Qxd5 h5 33. a4 Qg6 34. Nf3 Qf5 35. Ne5 Ne6 36. Qd6 Rg7 37. Nd7 b5 38. axb5 axb5 39. Qb8+ Kh7 40. Qd6 b4 41. Qxe6 Qxe6 42. Nf8+ Kg8 43. Nxe6 Rxg3 44. Kxg3 b3 45. Nf4 b2 46. Nxh5 b1=Q 47. Nf4 Qf5 48. Kf3 Qf6 49. g3 Kf7 50. Kg4 Qe5 51. Kf3 Kf6 52. Kg4 Qf5+ 53. Kf3 Qc2 54. Nd5+ Ke5 55. Nf4 Qd1+ 56. Ke3 Qb3+ 57. Kf2 Ke4 58. Kg2 Qc2+ 59. Kh3 Kf3 60. h5 Qf5+ 0-1

[Event "17th Asian Continental-ch Women 2018"]
[Site "Makati City"]
[Date "2018.12.16"]
[Round "7.7"]
[White "Li, Yunshan"]
[Black "Hoang, Thi Bao Tram"]
[Result "1-0"]
[ECO "A00"]
[WhiteElo "2196"]
[BlackElo "2314"]
[PlyCount "171"]
[EventDate "2018.12.07"]
[EventType "swiss"]
[EventCountry "PHI"]
[TimeControl "40/5400+30:1800+30"]

1. d4 d5 2. c4 c6 3. cxd5 cxd5 4. Bf4 Qb6 5. Nc3 e6 6. e3 Bd7 7. Bd3 Nf6 8. Nge2 Be7 9. O-O O-O 10. a3 Rc8 11. h3 Bc6 12. b4 a6 13. Na4 Qd8 14. Qb3 Nbd7 15. Nec3 Ne4 16. Bxe4 dxe4 17. d5 Bxa4 18. Nxa4 b5 19. Nc3 e5 20. Bg3 Rc4 21. Rac1 Rac8 22. Ne2 Nb6 23. Bxe5 Qxd5 24. Rxc4 Nxc4 25. Bd4 Qh5 26. Ng3 Qg6 27. Rc1 h5 28. a4 Bh4 29. Nf1 Qf5 30. Qa2 Kh7 31. Ng3 Qd5 32. Ra1 Rd8 33. Ne2 Rd6 34. axb5 axb5 35. Nc3 Qf5 36. Qc2 Rg6 37. Nxe4 Bxf2+ 38. Qxf2 Qxe4 39. Rf1 Nd6 40. Qf3 Qxf3 41. Rxf3 Re6 42. Rf2 Kg6 43. Ra2 Nc4 44. Kf2 Ne5 45. Ke2 Nc6 46. Bc5 Kg5 47. Rd2 Re4 48. Rd7 Kg6 49. Rd6+ Re6 50. Rd7 Re4 51. Kf3 Re5 52. Rb7 Rf5+ 53. Ke2 Kg5 54. Rb6 Rf6 55. g3 Kf5 56. Rxb5 Ke4 57. Rb7 Rf3 58. b5 Ne5 59. b6 Rxg3 60. Rc7 Rg2+ 61. Kd1 Rb2 62. Bd4 Rb4 63. b7 f6 64. Ba7 Nc6 65. Rxc6 Rxb7 66. Bd4 Kf3 67. Rc5 h4 68. Rh5 Kg3 69. Rh7 Rf7 70. Ke2 Kxh3 71. Kf3 Rf8 72. Rxg7 Kh2 73. Rg6 h3 74. Rxf6 Re8 75. Rh6 Rf8+ 76. Ke2 Rf5 77. e4 Rb5 78. e5 Kg2 79. Rg6+ Kh1 80. Rg1+ Kh2 81. Rf1 Kg2 82. Rf2+ Kg3 83. Rf3+ Kg2 84. Rf2+ Kg3 85. e6 h2 86. Rxh2 1-0

[Event "17th Asian Continental-ch Women 2018"]
[Site "Makati City"]
[Date "2018.12.16"]
[Round "7.8"]
[White "Fronda, Jan Jodilyn"]
[Black "Nguyen, Thi Thanh An"]
[Result "0-1"]
[ECO "A00"]
[WhiteElo "2139"]
[BlackElo "2262"]
[PlyCount "160"]
[EventDate "2018.12.07"]
[EventType "swiss"]
[EventCountry "PHI"]
[TimeControl "40/5400+30:1800+30"]

1. e4 c5 2. Nf3 Nc6 3. Bb5 d6 4. O-O Bd7 5. c3 Nf6 6. Re1 a6 7. Bxc6 Bxc6 8. e5 dxe5 9. Nxe5 Qd5 10. Nxc6 Qxc6 11. d4 Rd8 12. Be3 e6 13. Nd2 cxd4 14. cxd4 Be7 15. Rc1 Qd7 16. Nc4 O-O 17. Qb3 Qd5 18. Rc2 h6 19. h3 Rc8 20. Rec1 Rfd8 21. Nd2 Rxc2 22. Rxc2 Qxb3 23. Nxb3 Nd5 24. Na5 Rb8 25. Kf1 Bd6 26. Nc4 Rc8 27. Na3 Rd8 28. Nc4 Nb4 29. Rc3 Nxa2 30. Rb3 b5 31. Nxd6 Rxd6 32. Ke2 b4 33. Rd3 a5 34. Rd1 a4 35. d5 exd5 36. Rd4 Rc6 37. Kd3 a3 38. bxa3 b3 39. Ra4 Rc3+ 40. Kd2 Rc2+ 41. Kd3 Rc3+ 42. Kd2 b2 43. Ra8+ Kh7 44. Rb8 Rxa3 45. Rxb2 Nc3 46. f3 Nd1 47. Kxd1 Rxe3 48. Rd2 Re5 49. f4 Re4 50. Rxd5 Rxf4 51. Ke2 Kg6 52. g4 f6 53. Ra5 Kh7 54. Rb5 g5 55. Rb3 Kg6 56. Rf3 Rxf3 57. Kxf3 h5 58. Ke3 f5 59. gxf5+ Kxf5 60. Kf3 Ke5 61. Ke3 Kd5 62. Kd3 Kd6 63. Kd4 Ke6 64. Ke4 Kf6 65. Kf3 Kf5 66. Kg3 Ke4 67. Kg2 Ke3 68. Kg3 Ke2 69. h4 g4 70. Kg2 Ke3 71. Kg3 Ke4 72. Kf2 Kd3 73. Kf1 Ke3 74. Kg2 Ke2 75. Kg3 Kf1 76. Kf4 Kf2 77. Kg5 g3 78. Kxh5 g2 79. Kh6 g1=Q 80. h5 Qg4 0-1

[Event "17th Asian Continental-ch Women 2018"]
[Site "Makati City"]
[Date "2018.12.16"]
[Round "7.9"]
[White "Citra, Dewi Ardhiani Anast"]
[Black "Ning, Kaiyu"]
[Result "0-1"]
[ECO "A00"]
[WhiteElo "2215"]
[BlackElo "2247"]
[PlyCount "146"]
[EventDate "2018.12.07"]
[EventType "swiss"]
[EventCountry "PHI"]
[TimeControl "40/5400+30:1800+30"]

1. b3 d5 2. Bb2 Bf5 3. e3 e6 4. Ne2 Nf6 5. Ng3 Bg6 6. d3 Bd6 7. f4 Nc6 8. Qf3 h5 9. h4 Bf5 10. Nd2 Bg4 11. Qf2 e5 12. fxe5 Bxe5 13. d4 Bd6 14. Bb5 O-O 15. Bxc6 bxc6 16. O-O Bd7 17. Nf5 Ng4 18. Qe1 Bxf5 19. Rxf5 Re8 20. Rf3 c5 21. dxc5 Bxc5 22. Nf1 Qd6 23. Qc3 f6 24. Bc1 Re4 25. Ng3 Rae8 26. Nxe4 dxe4 27. Qc4+ Kh8 28. Rh3 Qd1+ 29. Qf1 Qxc2 30. b4 Bxb4 31. Bb2 Qxb2 32. Rb1 Qc3 33. Qb5 Rd8 34. Qxh5+ Nh6 35. Qg6 Bd6 36. Qxe4 Be5 37. Rf3 Qd3 38. Qxd3 Rxd3 39. e4 Rd2 40. Ra3 Ng4 41. Kf1 Bd4 42. Rb8+ Kh7 43. Rd8 Rf2+ 44. Ke1 Bb6 45. Rg3 Rf4 46. Kd2 Rxe4 47. Rd7 Ra4 48. Kc2 f5 49. Kb3 Ra5 50. Re7 Bc5 51. Rxc7 Ra3+ 52. Kc4 Rxg3 53. Rxc5 Rxg2 54. Kb5 f4 55. Rf5 Rf2 56. a4 f3 57. Ka6 Ra2 58. Rxf3 Rxa4+ 59. Kb5 Ra2 60. h5 Kh6 61. Rf7 Nf6 62. Kc6 Nxh5 63. Kd6 a5 64. Ke7 a4 65. Kf8 a3 66. Kg8 Nf6+ 67. Kh8 Nh5 68. Kg8 Rb2 69. Ra7 a2 70. Ra6+ Nf6+ 71. Kf7 Rb7+ 72. Kf8 Kg6 73. Rxa2 Rf7# 0-1

[Event "17th Asian Continental-ch Women 2018"]
[Site "Makati City"]
[Date "2018.12.16"]
[Round "7.10"]
[White "Nandhidhaa, P V"]
[Black "Mendoza, Shania Mae"]
[Result "1/2-1/2"]
[ECO "A00"]
[WhiteElo "2267"]
[BlackElo "2165"]
[PlyCount "102"]
[EventDate "2018.12.07"]
[EventType "swiss"]
[EventCountry "PHI"]
[TimeControl "40/5400+30:1800+30"]

1. Nf3 d5 2. g3 Bg4 3. Bg2 Nd7 4. O-O e5 5. c4 d4 6. h3 Bxf3 7. Bxf3 c6 8. d3 Ngf6 9. e3 Be7 10. exd4 exd4 11. Re1 O-O 12. Nd2 a5 13. Bg2 Nc5 14. Nf3 Re8 15. b3 Bf8 16. Rxe8 Nxe8 17. Bb2 Ne6 18. a3 N8c7 19. h4 f5 20. Qe2 Qf6 21. Re1 Bd6 22. Bh3 Re8 23. Qd2 b6 24. Ng5 h6 25. Nxe6 Rxe6 26. Rxe6 Nxe6 27. Qe2 c5 28. Bc1 Nf8 29. Bg2 Kh7 30. Bd5 Qe5 31. Qf3 Nd7 32. Bc6 Nf6 33. Kg2 Qe6 34. Bb7 Bc7 35. Bd2 Bb8 36. Qd1 Bd6 37. Qf3 Bb8 38. Bc6 Bd6 39. h5 Bc7 40. Bb7 Bb8 41. b4 axb4 42. axb4 Bc7 43. bxc5 bxc5 44. Qd1 Qf7 45. Bf3 Qe8 46. Qb3 Ng4 47. Qb7 Bb8 48. Qd5 Qxh5 49. Bxg4 Qxg4 50. Qxc5 Bxg3 51. fxg3 Qe2+ 1/2-1/2

[Event "17th Asian Continental-ch Women 2018"]
[Site "Makati City"]
[Date "2018.12.16"]
[Round "7.11"]
[White "Frayna, Janelle Mae"]
[Black "Doroy Allaney Jia G"]
[Result "1-0"]
[ECO "A00"]
[WhiteElo "2228"]
[BlackElo "1972"]
[PlyCount "71"]
[EventDate "2018.12.07"]
[EventType "swiss"]
[EventCountry "PHI"]
[TimeControl "40/5400+30:1800+30"]

1. d4 Nf6 2. c4 g6 3. Nf3 Bg7 4. g3 O-O 5. Bg2 d6 6. O-O c5 7. d5 e6 8. Nc3 exd5 9. cxd5 Na6 10. Re1 Nc7 11. a4 b6 12. Bf4 Nh5 13. Bg5 f6 14. Bc1 f5 15. e4 fxe4 16. Ng5 Bb7 17. Ngxe4 Qd7 18. Be3 a6 19. Ng5 Be5 20. f4 Bf6 21. Bh3 Qd8 22. Qb3 h6 23. Ne6 Nxe6 24. Bxe6+ Kh7 25. f5 g5 26. Ne4 Be5 27. Bf2 Rb8 28. Rad1 Nf6 29. Nd2 Ng4 30. Nc4 Nxf2 31. Nxe5 Nxd1 32. Nd7 Nxb2 33. Qxb2 Qc7 34. f6 c4 35. Qc2+ Kh8 36. Qg6 1-0

[Event "17th Asian Continental-ch Women 2018"]
[Site "Makati City"]
[Date "2018.12.16"]
[Round "7.12"]
[White "Makhija, Aashna"]
[Black "Karenza, Dita"]
[Result "0-1"]
[ECO "A00"]
[WhiteElo "2181"]
[BlackElo "1944"]
[PlyCount "122"]
[EventDate "2018.12.07"]
[EventType "swiss"]
[EventCountry "PHI"]
[TimeControl "40/5400+30:1800+30"]

1. e4 c5 2. c3 g6 3. d4 cxd4 4. cxd4 d5 5. e5 Nc6 6. Bb5 Bg7 7. Nc3 Nh6 8. h3 O-O 9. Nf3 f6 10. exf6 exf6 11. O-O g5 12. Qb3 Be6 13. Bxc6 bxc6 14. Na4 Re8 15. Bd2 Nf7 16. Rac1 Rc8 17. Nc5 Bf5 18. Qa4 Qb6 19. Rc3 Nd6 20. Rfc1 h5 21. Rb3 Qc7 22. Qa6 Bf8 23. Nb7 Nc4 24. Na5 Nxd2 25. Nxd2 Qf4 26. Rf3 Qxd2 27. Nb3 Re1+ 28. Kh2 Bd6+ 29. g3 Qe2 30. Qxe2 Rxe2 31. Rxf5 Kf7 32. Kg1 Ke6 33. Rf3 Rxb2 34. Rfc3 Rxa2 35. Rxc6 Rxc6 36. Rxc6 Kd7 37. Rc3 a5 38. Nc5+ Bxc5 39. Rxc5 Kd6 40. Rc8 a4 41. Ra8 Kc6 42. Rc8+ Kb5 43. Rc5+ Kb4 44. Rxd5 Rd2 45. Rd6 a3 46. Rb6+ Kc3 47. Ra6 a2 48. Kg2 Kb2 49. Rb6+ Kc1 50. Ra6 Kb1 51. Rb6+ Rb2 52. Ra6 a1=Q 53. Rxa1+ Kxa1 54. Kf3 f5 55. h4 Rb3+ 56. Ke2 gxh4 57. gxh4 Rh3 58. d5 Rxh4 59. Ke3 Re4+ 60. Kd3 h4 61. d6 Re6 0-1